bitfinex/quotes_BTCUSD_20250508
["timestamp","ask_amount","ask_price","bid_price","bid_amount"]
[1746731386976,0.25494428,101220.0,101210.0,0.21800894]
[1746731387591,0.25494428,101220.0,101210.0,0.22788938]
[1746731388385,0.25494428,101220.0,101210.0,0.21800894]
[1746731388589,0.25494428,101220.0,101210.0,0.22788938]
[1746731388785,0.05735488,101220.0,101210.0,0.22788938]
[1746731388996,0.26482316,101220.0,101210.0,0.24764977]
[1746731389603,0.04747492,101220.0,101210.0,0.24764977]
[1746731389780,0.06723288,101220.0,101210.0,0.25752953]
[1746731390294,0.07711215,101220.0,101210.0,0.25752953]
[1746731390423,0.08699152,101220.0,101210.0,0.25752963]
[1746731390844,0.08699231,101220.0,101210.0,0.25752972]
[1746731391067,0.07711284,101220.0,101210.0,0.26740958]
[1746731391320,0.07685264,101220.0,101210.0,0.2674089]
[1746731391500,0.07685264,101220.0,101210.0,0.25752914]
[1746731391711,0.28432151,101220.0,101210.0,0.24764928]
[1746731391866,0.27444263,101220.0,101210.0,0.24764928]
[1746731393441,0.27444263,101220.0,101210.0,0.23776933]
[1746731394919,0.26456355,101220.0,101210.0,0.23776933]
[1746731395056,0.26456355,101220.0,101210.0,0.21800894]
[1746731395268,0.23492544,101220.0,101210.0,0.02040001]
[1746731398236,0.35013321,101220.0,101210.0,0.02040001]
[1746731398662,0.22328918,101210.0,101200.0,0.20652133]
[1746731398861,0.23928918,101210.0,101200.0,0.20652153]
[1746731398975,0.24333821,101210.0,101200.0,0.20652153]
[1746731399478,0.24333821,101210.0,101200.0,0.21640285]
[1746731399900,0.24433821,101210.0,101200.0,0.22240285]
[1746731400731,0.24433821,101210.0,101200.0,0.23228407]
[1746731401004,0.24433821,101210.0,101200.0,0.23728407]
[1746731401005,0.24533821,101210.0,101200.0,0.23728407]
[1746731402216,0.24533821,101210.0,101200.0,0.04064396]
[1746731402399,0.24533821,101210.0,101200.0,0.22819072]
[1746731403701,0.24533821,101210.0,101200.0,0.2183094]
[1746731403907,0.23545796,101210.0,101200.0,0.20862845]
[1746731404113,0.23545796,101210.0,101200.0,0.21850987]
[1746731407072,0.23545796,101210.0,101200.0,0.011]
[1746731407281,0.29028347,101210.0,101200.0,0.011]
[1746731407485,0.23545796,101210.0,101200.0,0.011]
[1746731408766,0.24000977,101200.0,101190.0,0.24783323]
[1746731408944,0.24000977,101200.0,101190.0,0.23795132]
[1746731409093,0.24400971,101200.0,101190.0,0.23795132]
[1746731409305,0.24400971,101200.0,101190.0,0.20830472]
[1746731409502,0.24400971,101200.0,101190.0,0.21818702]
[1746731409729,0.24400971,101200.0,101190.0,0.22806922]
[1746731410110,0.24400971,101200.0,101190.0,0.23795132]
[1746731410717,0.24400971,101200.0,101190.0,0.24412997]
[1746731411075,0.24500971,101200.0,101190.0,0.24912997]
[1746731411261,0.24600971,101200.0,101190.0,0.24524787]
[1746731411479,0.24600971,101200.0,101190.0,0.25449596]
[1746731412087,0.24600971,101200.0,101190.0,0.03708352]
[1746731412293,0.24600971,101200.0,101190.0,0.2347315]
[1746731413273,0.23612839,101200.0,101190.0,0.2347315]
[1746731413855,0.23212845,101200.0,101190.0,0.2347315]
[1746731415207,0.23212845,101200.0,101190.0,0.03708352]
[1746731415611,0.23212845,101200.0,101190.0,0.02720113]
[1746731415951,0.23212845,101200.0,101190.0,0.22484911]
[1746731416223,0.23212845,101200.0,101190.0,0.2347315]
[1746731417374,0.23212845,101200.0,101190.0,0.02720113]
[1746731417843,0.28964304,101200.0,101190.0,0.02720113]
[1746731418261,0.39030996,101200.0,101190.0,0.02720113]
[1746731418439,0.39030996,101200.0,101190.0,0.02102248]
[1746731418862,0.38930996,101200.0,101190.0,0.01602248]
[1746731419168,0.38930996,101200.0,101190.0,0.01302248]
[1746731419372,0.38930996,101200.0,101190.0,0.00377439]
[1746731419573,0.39030996,101200.0,101190.0,0.00677439]
[1746731419997,0.38930996,101200.0,101190.0,0.00377439]
[1746731420398,0.38930996,101200.0,101190.0,0.00077439]
[1746731420559,0.39030996,101200.0,101190.0,0.00077439]
[1746731421014,0.34733622,101200.0,101190.0,0.00077439]
[1746731421782,0.41333622,101200.0,101190.0,0.00077439]
[1746731428559,0.75333622,101200.0,101190.0,0.00077439]
[1746731429132,0.78089362,101200.0,101190.0,0.00077439]
[1746731430398,0.71489362,101200.0,101190.0,0.00077439]
[1746731430613,0.68733622,101200.0,101190.0,0.00077439]
[1746731430824,0.63808845,101200.0,101190.0,0.00077439]
[1746731431032,0.19962845,101200.0,101190.0,0.00077439]
[1746731431513,0.20787298,101200.0,101190.0,0.00077439]
[1746731433467,0.24017298,101200.0,101190.0,0.00077439]
[1746731436597,0.29054717,101200.0,101190.0,0.00077439]
[1746731437034,0.24017298,101200.0,101190.0,0.00077439]
[1746731448667,0.22731588,101180.0,101170.0,0.07827351]
[1746731448981,0.22731666,101180.0,101170.0,0.18091696]
[1746731449223,0.23545618,101180.0,101170.0,0.19017457]
[1746731449646,0.23545618,101180.0,101170.0,0.18029061]
[1746731449846,0.22557339,101180.0,101170.0,0.18029061]
[1746731450057,0.22562051,101180.0,101170.0,0.18029061]
[1746731450481,0.22562051,101180.0,101170.0,0.18029081]
[1746731450902,0.22762051,101180.0,101170.0,0.19029081]
[1746731451638,0.22762051,101180.0,101170.0,0.22089081]
[1746731451846,0.22762051,101180.0,101170.0,0.21891428]
[1746731452255,0.21773743,101180.0,101170.0,0.21891428]
[1746731453629,0.21773743,101180.0,101170.0,0.22879843]
[1746731453890,0.22762041,101180.0,101170.0,0.23868248]
[1746731454110,0.22762041,101180.0,101170.0,0.57930814]
[1746731454111,0.01018664,101180.0,101170.0,0.57930814]
[1746731454331,0.01018664,101180.0,101170.0,1.62744603]
[1746731454549,0.01018664,101180.0,101170.0,1.53514303]
[1746731455207,0.01018664,101180.0,101170.0,1.52588614]
[1746731455865,0.01018664,101180.0,101170.0,1.53514135]
[1746731456791,0.01018664,101180.0,101170.0,1.27389735]
[1746731456908,0.01018664,101180.0,101170.0,1.67389735]
[1746731457335,0.01018664,101180.0,101170.0,1.48968835]
[1746731460687,0.01018664,101180.0,101170.0,1.49586708]
[1746731460894,0.01018664,101180.0,101170.0,0.99474208]
[1746731461094,0.01018664,101180.0,101170.0,2.17123008]
[1746731461253,0.01018664,101180.0,101170.0,2.58753008]
[1746731461748,0.00204712,101180.0,101170.0,2.58753008]
[1746731462374,0.022,101210.0,101200.0,0.25827153]
[1746731462571,0.05163957,101210.0,101200.0,0.32807872]
[1746731462727,0.04860345,101210.0,101200.0,0.33425745]
[1746731462930,0.0584835,101210.0,101200.0,0.33425745]
[1746731463741,0.06836375,101210.0,101200.0,0.34451266]
[1746731463946,0.07436375,101210.0,101200.0,0.34551266]
[1746731464689,0.07436375,101210.0,101200.0,0.33563193]
[1746731465094,0.2927937,101210.0,101200.0,0.01757421]
[1746731465273,0.28291365,101210.0,101200.0,0.21520266]
[1746731465526,0.28291365,101210.0,101200.0,0.01757421]
[1746731465713,0.28291365,101210.0,101200.0,0.01139548]
[1746731465914,0.4192147,101210.0,101200.0,0.01139548]
[1746731466112,0.51988162,101210.0,101200.0,0.01139548]
[1746731466315,0.46396142,101210.0,101200.0,0.01139548]
[1746731466662,0.46396142,101210.0,101200.0,0.00214027]
[1746731469166,0.39812142,101210.0,101200.0,0.00214027]
[1746731469432,0.46396142,101210.0,101200.0,0.00214027]
[1746731470005,0.28291365,101210.0,101200.0,0.00214027]
[1746731470212,0.34875365,101210.0,101200.0,0.00214027]
[1746731471402,0.34875365,101210.0,101200.0,0.01138096]
[1746731471789,0.28291365,101210.0,101200.0,0.01138096]
[1746731472396,0.28291365,101210.0,101200.0,0.01755981]
[1746731473692,0.35208895,101210.0,101200.0,0.01755981]
[1746731473895,0.79275587,101210.0,101200.0,0.01755981]
[1746731474094,0.82036088,101210.0,101200.0,0.01755981]
[1746731474294,0.82036088,101210.0,101200.0,0.00214027]
[1746731475024,0.81736088,101210.0,101200.0,0.00114027]
[1746731476473,0.76272643,101210.0,101200.0,0.00114027]
[1746731476703,0.77372643,101210.0,101200.0,0.00114027]
[1746731477034,0.77672643,101210.0,101200.0,0.00214027]
[1746731477862,1.46952643,101210.0,101200.0,0.00214027]
[1746731479157,0.24905507,101170.0,101160.0,0.01129575]
[1746731479293,0.36426284,101170.0,101160.0,0.01129575]
[1746731479504,0.37085746,101170.0,101160.0,0.01129575]
[1746731479709,0.43669746,101170.0,101160.0,0.00206]
[1746731480339,0.43769746,101170.0,101160.0,0.00706]
[1746731480563,0.44613229,101170.0,101160.0,0.00953331]
[1746731480968,0.43869746,101170.0,101160.0,0.00953331]
[1746731481414,0.43769746,101170.0,101160.0,0.00453331]
[1746731481617,0.43869746,101170.0,101160.0,0.00553331]
[1746731484681,0.79080646,101170.0,101160.0,0.00553331]
[1746731485924,1.13080646,101170.0,101160.0,0.00553331]
[1746731486708,1.12980646,101170.0,101160.0,0.00453331]
[1746731486916,1.13180646,101170.0,101160.0,0.00253331]
[1746731487117,1.13380646,101170.0,101160.0,0.00253331]
[1746731494202,0.78169746,101170.0,101160.0,0.00253331]
[1746731494407,1.13380646,101170.0,101160.0,0.00253331]
[1746731495345,1.62161302,101170.0,101160.0,0.00253331]
[1746731495665,1.35196243,101170.0,101160.0,0.00253331]
[1746731496056,1.34996243,101170.0,101160.0,0.00253331]
[1746731496261,1.80273835,101170.0,101160.0,0.00253331]
[1746731496480,1.80673835,101170.0,101160.0,0.00253331]
[1746731496788,1.79673835,101170.0,101160.0,0.00253331]
[1746731496997,1.71804079,101170.0,101160.0,0.00253331]
[1746731497339,1.36593179,101170.0,101160.0,0.00253331]
[1746731498181,1.71804079,101170.0,101160.0,0.00253331]
[1746731498971,1.66804079,101170.0,101160.0,0.00253331]
[1746731500508,1.56737387,101170.0,101160.0,0.00253331]
[1746731501323,1.15942487,101170.0,101160.0,0.00253331]
[1746731501520,1.15072402,101170.0,101160.0,0.00253331]
[1746731501723,1.13488402,101170.0,101160.0,0.00253331]
[1746731501941,1.18780646,101170.0,101160.0,0.00253331]
[1746731502682,1.13780646,101170.0,101160.0,0.00253331]
[1746731503254,1.26939356,101170.0,101160.0,0.00253331]
[1746731503464,1.16529356,101170.0,101160.0,0.00253331]
[1746731503668,0.71985746,101170.0,101160.0,0.00253331]
[1746731503877,0.78569746,101170.0,101160.0,0.00253331]
[1746731504072,1.19445016,101170.0,101160.0,0.00253331]
[1746731504390,1.13780646,101170.0,101160.0,0.00253331]
[1746731504976,0.33371661,101170.0,101160.0,0.00253331]
[1746731505947,0.34825746,101170.0,101160.0,0.00253331]
[1746731506883,0.22738387,101150.0,101140.0,0.47703311]
[1746731507142,0.22738387,101150.0,101140.0,0.47149275]
[1746731507345,0.23366978,101150.0,101140.0,0.47149275]
[1746731507644,0.23366978,101150.0,101140.0,0.4807334]
[1746731508067,0.23366978,101150.0,101140.0,0.49062029]
[1746731508271,0.23466978,101150.0,101140.0,0.49062029]
[1746731508824,0.03694364,101150.0,101140.0,0.50050708]
[1746731509065,0.03694364,101150.0,101140.0,0.60117332]
[1746731509066,0.01717153,101150.0,101140.0,0.60117332]
[1746731509305,0.02705744,101150.0,101140.0,0.60117332]
[1746731509419,0.00728591,101150.0,101140.0,1.01987088]
[1746731509632,0.00828591,101150.0,101140.0,1.01987088]
[1746731510296,0.00828591,101150.0,101140.0,1.02087088]
[1746731510526,0.00728591,101150.0,101140.0,1.02087088]
[1746731510731,0.00828591,101150.0,101140.0,1.02087088]
[1746731510969,0.00728591,101150.0,101140.0,1.02087088]
[1746731511170,0.00828591,101150.0,101140.0,1.02087088]
[1746731511654,0.00828591,101150.0,101140.0,2.94663788]
[1746731511860,0.00828591,101150.0,101140.0,3.56612688]
[1746731512273,0.002,101150.0,101140.0,3.96612688]
[1746731512512,0.002,101150.0,101140.0,3.61401788]
[1746731512697,0.00860588,101150.0,101140.0,3.53532032]
[1746731514834,0.00860588,101150.0,101140.0,3.88742932]
[1746731515001,0.002,101170.0,101160.0,0.2585614]
[1746731515210,0.002,101170.0,101160.0,1.06962819]
[1746731515405,0.00746024,101170.0,101160.0,1.06962819]
[1746731515646,0.00746024,101170.0,101160.0,3.18744584]
[1746731515850,0.00746024,101170.0,101160.0,4.34374584]
[1746731516056,0.00746024,101170.0,101160.0,4.31751684]
[1746731516841,0.00746024,101170.0,101160.0,2.30096884]
[1746731517042,0.00746024,101170.0,101160.0,2.43144984]
[1746731517249,0.00746024,101170.0,101160.0,2.30096884]
[1746731517659,0.00946024,101170.0,101160.0,2.43297784]
[1746731519486,0.009493,101170.0,101160.0,2.43297784]
[1746731519895,0.009493,101170.0,101160.0,2.01667784]
[1746731521467,0.004,101170.0,101160.0,2.01667784]
[1746731521910,0.00946556,101170.0,101160.0,2.03812504]
[1746731522115,0.002,101190.0,101180.0,0.58251646]
[1746731522411,0.002,101190.0,101180.0,3.22134138]
[1746731522615,0.002,101190.0,101180.0,3.2367639]
[1746731523038,0.002,101190.0,101180.0,2.4260429]
[1746731523252,0.002,101190.0,101180.0,3.13716725]
[1746731523897,0.003,101190.0,101180.0,3.14016725]
[1746731524415,0.003,101190.0,101180.0,3.14216725]
[1746731525938,0.003,101190.0,101180.0,3.55846725]
[1746731527755,0.00781967,101190.0,101180.0,3.4036499]
[1746731533503,0.002,101210.0,101200.0,0.58297153]
[1746731533711,0.002,101210.0,101200.0,2.54562945]
[1746731533712,0.00204733,101210.0,101200.0,2.54562945]
[1746731533952,0.00204733,101210.0,101200.0,2.55181132]
[1746731534359,0.00204733,101210.0,101200.0,2.96105197]
[1746731534555,0.00204733,101210.0,101200.0,2.95024997]
[1746731534915,0.00204733,101210.0,101200.0,3.30970023]
[1746731535131,0.00204733,101210.0,101200.0,2.95759123]
[1746731535365,0.00204733,101210.0,101200.0,2.93341097]
[1746731535800,0.00304733,101210.0,101200.0,3.28951997]
[1746731536226,0.00204733,101210.0,101200.0,2.93741097]
[1746731536427,0.00204733,101210.0,101200.0,2.94430381]
[1746731536651,0.00304733,101210.0,101200.0,2.94930381]
[1746731537969,0.00304733,101210.0,101200.0,3.36560381]
[1746731538181,0.00304733,101210.0,101200.0,3.37610191]
[1746731538381,0.00304733,101210.0,101200.0,2.79987391]
[1746731539983,0.00304733,101210.0,101200.0,3.15198291]
[1746731540403,0.00304733,101210.0,101200.0,2.27001347]
[1746731540618,0.00304733,101210.0,101200.0,5.63581647]
[1746731540833,0.00304733,101210.0,101200.0,4.92062347]
[1746731541045,0.00304733,101210.0,101200.0,4.88859347]
[1746731541262,0.00729284,101210.0,101200.0,4.88859347]
[1746731541516,0.00304733,101210.0,101200.0,4.88859347]
[1746731541943,0.00729284,101210.0,101200.0,4.88859347]
[1746731542615,0.00729284,101210.0,101200.0,5.30642247]
[1746731542838,0.00304733,101210.0,101200.0,5.30642247]
[1746731544096,0.04347771,101230.0,101220.0,0.56722663]
[1746731544317,0.00247325,101230.0,101220.0,1.37211155]
[1746731544530,0.00247325,101230.0,101220.0,1.37900439]
[1746731544739,0.00247325,101230.0,101220.0,1.78518626]
[1746731544937,0.00247325,101230.0,101220.0,1.79442691]
[1746731545392,0.00547325,101230.0,101220.0,1.79442691]
[1746731546665,0.00247325,101230.0,101220.0,1.79442691]
[1746731547986,0.00247325,101230.0,101220.0,1.79542691]
[1746731548290,0.00247325,101230.0,101220.0,1.79842691]
[1746731549085,0.02825096,101230.0,101220.0,1.44631791]
[1746731549301,0.04365096,101230.0,101220.0,1.44631791]
[1746731551227,0.04365096,101230.0,101220.0,1.79842691]
[1746731552976,0.05352877,101230.0,101220.0,1.79842691]
[1746731554033,0.06340677,101230.0,101220.0,1.79842691]
[1746731554261,0.05352877,101230.0,101220.0,1.44631791]
[1746731554494,0.04365096,101230.0,101220.0,1.79842691]
[1746731554701,0.05352886,101230.0,101220.0,1.79842691]
[1746731555072,0.04365096,101230.0,101220.0,1.79842691]
[1746731555383,0.05352886,101230.0,101220.0,1.79842691]
[1746731555786,0.05352877,101230.0,101220.0,1.79842691]
[1746731557410,0.06340667,101230.0,101220.0,1.44631791]
[1746731557611,0.05352877,101230.0,101220.0,1.79842691]
[1746731558683,0.05352877,101230.0,101220.0,1.79842132]
[1746731559268,0.27085554,101230.0,101220.0,1.43643373]
[1746731559481,0.07328555,101230.0,101220.0,1.45619159]
[1746731559842,0.07328555,101230.0,101220.0,1.46607037]
[1746731560631,0.07328555,101230.0,101220.0,1.45619159]
[1746731561058,0.07328555,101230.0,101220.0,1.46607037]
[1746731563133,0.06340716,101230.0,101220.0,1.46607037]
[1746731563831,0.27085554,101230.0,101220.0,1.44631271]
[1746731564244,0.06340716,101230.0,101220.0,1.45619159]
[1746731564440,0.07328545,101230.0,101220.0,1.46607037]
[1746731565093,0.06340716,101230.0,101220.0,1.46607037]
[1746731565712,0.06340706,101230.0,101220.0,1.46607037]
[1746731565921,0.07328535,101230.0,101220.0,1.46607037]
[1746731567005,0.06340706,101230.0,101220.0,1.46607037]
[1746731567210,0.07328535,101230.0,101220.0,1.46607037]
[1746731567633,0.07328535,101230.0,101220.0,1.06607037]
[1746731568041,0.06340716,101230.0,101220.0,1.06607037]
[1746731569522,0.05352896,101230.0,101220.0,1.06607037]
[1746731569949,0.06340706,101230.0,101220.0,1.06607037]
[1746731570334,0.06340696,101230.0,101220.0,1.06607037]
[1746731571252,0.06340696,101230.0,101220.0,1.05619159]
[1746731571459,0.06340696,101230.0,101220.0,1.06607037]
[1746731572110,0.05352896,101230.0,101220.0,1.06607037]
[1746731572310,0.06340706,101230.0,101220.0,1.06607037]
[1746731572952,0.05352896,101230.0,101220.0,1.06607037]
[1746731573189,0.06340706,101230.0,101220.0,1.06607037]
[1746731573401,0.05352896,101230.0,101220.0,1.06607037]
[1746731573624,0.05329999,101230.0,101220.0,1.06607037]
[1746731573843,0.06317799,101230.0,101220.0,1.06607037]
[1746731575725,0.06317799,101230.0,101220.0,0.71396137]
[1746731575925,0.06317799,101230.0,101220.0,1.06607037]
[1746731576124,0.06317799,101230.0,101220.0,0.71396137]
[1746731576494,0.06317799,101230.0,101220.0,1.06607037]
[1746731581846,0.04342209,101230.0,101220.0,1.17520021]
[1746731582028,0.01814428,101230.0,101220.0,1.17520021]
[1746731582235,0.03324428,101230.0,101220.0,1.17520021]
[1746731582435,0.04312199,101230.0,101220.0,1.17520021]
[1746731583355,0.03324428,101230.0,101220.0,1.17520021]
[1746731583965,0.05300009,101230.0,101220.0,1.17520021]
[1746731584165,0.04312209,101230.0,101220.0,1.17520021]
[1746731584284,0.04312199,101230.0,101220.0,1.17520021]
[1746731584690,0.0529998,101230.0,101220.0,1.17520021]
[1746731585770,0.0529998,101230.0,101220.0,1.06536749]
[1746731586231,0.0628778,101230.0,101220.0,1.06536749]
[1746731586641,0.27032676,101230.0,101220.0,0.66456609]
[1746731586841,0.25057095,101230.0,101220.0,0.02630977]
[1746731587470,0.25057095,101230.0,101220.0,0.22389917]
[1746731587638,0.24069266,101230.0,101220.0,0.02630977]
[1746731587836,0.24069266,101230.0,101220.0,0.22389917]
[1746731588476,0.24069266,101230.0,101220.0,0.02630977]
[1746731589536,0.24069266,101230.0,101220.0,0.22389917]
[1746731590897,0.03324428,101230.0,101220.0,0.68585168]
[1746731591106,0.00224428,101230.0,101220.0,1.40689503]
[1746731591310,0.03414428,101230.0,101220.0,1.40689503]
[1746731591520,0.04402189,101230.0,101220.0,1.05548891]
[1746731591720,0.03414428,101230.0,101220.0,1.05548891]
[1746731591943,0.04402199,101230.0,101220.0,1.05548891]
[1746731592154,0.04402189,101230.0,101220.0,1.05548891]
[1746731594238,0.04402189,101230.0,101220.0,1.45548891]
[1746731594687,0.0538997,101230.0,101220.0,1.45548891]
[1746731594903,0.0637777,101230.0,101220.0,1.45548891]
[1746731595343,0.0538997,101230.0,101220.0,1.45548891]
[1746731596191,0.0637777,101230.0,101220.0,1.45548891]
[1746731596433,0.26134886,101230.0,101220.0,0.56389917]
[1746731596642,0.25147086,101230.0,101220.0,0.22389917]
[1746731597087,0.25147086,101230.0,101220.0,0.23377864]
[1746731597517,0.25147086,101230.0,101220.0,0.22389917]
[1746731597673,0.25147086,101230.0,101220.0,0.23377864]
[1746731598084,0.26134876,101230.0,101220.0,0.59506403]
[1746731598558,0.26134876,101230.0,101220.0,0.59506413]
[1746731599372,0.26134876,101230.0,101220.0,0.23377864]
[1746731599811,0.26134876,101230.0,101220.0,0.24365801]
[1746731600906,0.06377887,101230.0,101220.0,0.25353718]
[1746731601339,0.26134876,101230.0,101220.0,0.25353728]
[1746731602007,0.26134876,101230.0,101220.0,0.02630977]
[1746731602273,0.25147086,101230.0,101220.0,0.02630977]
[1746731605687,0.25147086,101230.0,101220.0,0.22389917]
[1746731606143,0.25147086,101230.0,101220.0,0.21700633]
[1746731611873,0.25147086,101230.0,101220.0,0.2268858]
[1746731612112,0.25147086,101230.0,101220.0,0.21700633]
[1746731615625,0.25147086,101230.0,101220.0,0.01941693]
[1746731615842,0.60287698,101230.0,101220.0,0.01941693]
[1746731616090,0.25147086,101230.0,101220.0,0.01941693]
[1746731619311,0.04077937,101220.0,101210.0,0.3962931]
[1746731619550,0.04077937,101220.0,101210.0,0.59388419]
[1746731619956,0.05065854,101220.0,101210.0,0.58400443]
[1746731620142,0.05065805,101220.0,101210.0,0.59388419]
[1746731620394,0.06053742,101220.0,101210.0,0.94529031]
[1746731620601,0.06153742,101220.0,101210.0,0.59888419]
[1746731620813,0.08129567,101220.0,101210.0,0.59300443]
[1746731621473,0.26310007,101220.0,101210.0,0.59300443]
[1746731621689,0.25322129,101220.0,101210.0,0.59300452]
[1746731621932,0.24334182,101220.0,101210.0,0.60288438]
[1746731622126,0.25322129,101220.0,101210.0,0.60288438]
[1746731622312,0.04575242,101220.0,101210.0,0.6028838]
[1746731622514,0.24334182,101220.0,101210.0,0.6028838]
[1746731622721,0.25322129,101220.0,101210.0,0.6028838]
[1746731623810,0.25322129,101220.0,101210.0,0.8335925]
[1746731624606,0.26822129,101220.0,101210.0,0.8335925]
[1746731625072,0.26822129,101220.0,101210.0,0.82371274]
[1746731625751,0.26822129,101220.0,101210.0,0.59300404]
[1746731627393,0.47917194,101220.0,101210.0,0.01589284]
[1746731627585,0.49371279,101220.0,101210.0,0.01589284]
[1746731627790,0.49371279,101220.0,101210.0,0.009]
[1746731628287,0.49271279,101220.0,101210.0,0.004]
[1746731628516,0.24836893,101210.0,101200.0,0.21739024]
[1746731628986,0.23848937,101210.0,101200.0,0.20750931]
[1746731629191,0.23848937,101210.0,101200.0,0.22727166]
[1746731629528,0.23848937,101210.0,101200.0,0.22827166]
[1746731629730,0.23848937,101210.0,101200.0,0.22927166]
[1746731630299,0.23848937,101210.0,101200.0,0.21939053]
[1746731630499,0.05076001,101210.0,101200.0,0.22927156]
[1746731630723,0.26812972,101210.0,101200.0,0.23915239]
[1746731631115,0.26812972,101210.0,101200.0,0.23915249]
[1746731631315,0.26812972,101210.0,101200.0,0.46986119]
[1746731631525,0.26812972,101210.0,101200.0,0.48529197]
[1746731631733,0.26812972,101210.0,101200.0,0.25458327]
[1746731631940,0.25824986,101210.0,101200.0,0.25458327]
[1746731632370,0.016,101210.0,101200.0,0.61608672]
[1746731632620,0.01975942,101210.0,101200.0,0.63208672]
[1746731632859,0.02487868,101220.0,101210.0,0.23712914]
[1746731633094,0.04463693,101220.0,101210.0,0.58875186]
[1746731633322,0.0545164,101220.0,101210.0,0.59800456]
[1746731633518,0.0545164,101220.0,101210.0,0.60418264]
[1746731633744,0.04463693,101220.0,101210.0,0.60418264]
[1746731633976,0.02963693,101220.0,101210.0,0.60418264]
[1746731634181,0.03163693,101220.0,101210.0,0.60418264]
[1746731634413,0.2391057,101220.0,101210.0,0.60418264]
[1746731634561,0.02175766,101220.0,101210.0,0.60418264]
[1746731634774,0.0415161,101220.0,101210.0,0.61928264]
[1746731634976,0.0435161,101220.0,101210.0,0.61928264]
[1746731635381,0.0435161,101220.0,101210.0,0.71994956]
[1746731635382,0.01387878,101220.0,101210.0,0.71994956]
[1746731635587,0.02375766,101220.0,101210.0,0.71994956]
[1746731635901,0.004,101220.0,101210.0,0.73574956]
[1746731636261,0.004,101220.0,101210.0,1.07574956]
[1746731636496,0.01387868,101220.0,101210.0,1.07574956]
[1746731636930,0.01387859,101220.0,101210.0,1.07574956]
[1746731637138,0.02375737,101220.0,101210.0,1.07574956]
[1746731638544,0.03363625,101220.0,101210.0,1.47574956]
[1746731638775,0.01387859,101220.0,101210.0,1.47574956]
[1746731638967,0.004,101220.0,101210.0,1.47574956]
[1746731639620,0.01387859,101220.0,101210.0,1.47574956]
[1746731640798,0.004,101220.0,101210.0,1.47574956]
[1746731641029,0.004,101220.0,101210.0,2.04122356]
[1746731641241,0.004,101220.0,101210.0,1.47574956]
[1746731641483,0.004,101220.0,101210.0,2.91230556]
[1746731641686,0.01387868,101220.0,101210.0,1.47574956]
[1746731642322,0.02375746,101220.0,101210.0,1.47574956]
[1746731642565,0.03363654,101220.0,101210.0,1.10832684]
[1746731642816,0.25174804,101220.0,101210.0,0.35543078]
[1746731643045,0.25174804,101220.0,101210.0,0.01543078]
[1746731651127,0.23978918,101210.0,101200.0,0.72726895]
[1746731651396,0.23978918,101210.0,101200.0,0.72356593]
[1746731651658,0.23978918,101210.0,101200.0,0.73344706]
[1746731651882,0.23978918,101210.0,101200.0,0.72356593]
[1746731652105,0.23978918,101210.0,101200.0,0.23281319]
[1746731652329,0.23978918,101210.0,101200.0,0.21305055]
[1746731652581,0.23978918,101210.0,101200.0,0.01542537]
[1746731652809,0.60595275,101210.0,101200.0,0.01742537]
[1746731653007,0.25433003,101210.0,101200.0,0.002]
[1746731653603,0.25433003,101210.0,101200.0,0.003]
[1746731655215,0.23978918,101210.0,101200.0,0.20062845]
[1746731655697,0.24966962,101210.0,101200.0,0.20062845]
[1746731656326,0.24966962,101210.0,101200.0,0.003]
[1746731659114,0.24966962,101210.0,101200.0,0.20062845]
[1746731659356,0.24966962,101210.0,101200.0,0.003]
[1746731661228,0.36487739,101210.0,101200.0,0.003]
[1746731661687,0.71650011,101210.0,101200.0,0.003]
[1746731662576,0.37211199,101210.0,101200.0,0.003]
[1746731662786,0.72373471,101210.0,101200.0,0.003]
[1746731666791,1.06373471,101210.0,101200.0,0.003]
[1746731668925,1.0913247,101210.0,101200.0,0.003]
[1746731669286,1.1413247,101210.0,101200.0,0.003]
[1746731669496,1.24199162,101210.0,101200.0,0.003]
[1746731669694,1.25199162,101210.0,101200.0,0.001]
[1746731669898,0.60335294,101190.0,101180.0,0.002]
[1746731670116,1.12100258,101190.0,101180.0,0.002]
[1746731671113,0.76937986,101190.0,101180.0,0.002]
[1746731671327,0.70401986,101190.0,101180.0,0.00204733]
[1746731671539,0.23251209,101190.0,101180.0,0.01193051]
[1746731671748,0.23251209,101190.0,101180.0,0.57642075]
[1746731671749,0.2172165,101190.0,101180.0,0.57642075]
[1746731671965,0.19764798,101190.0,101180.0,0.01724733]
[1746731672174,0.19864798,101190.0,101180.0,0.01724733]
[1746731672800,0.21624798,101190.0,101180.0,0.00204733]
[1746731673969,0.20064798,101190.0,101180.0,0.00204733]
[1746731674334,0.21624798,101190.0,101180.0,0.00204733]
[1746731674592,0.20064798,101190.0,101180.0,0.00204733]
[1746731675421,0.2302937,101190.0,101180.0,0.612787]
[1746731675923,0.2302937,101190.0,101180.0,0.62266979]
[1746731676366,0.24017609,101190.0,101180.0,0.63191705]
[1746731676778,0.23029448,101190.0,101180.0,0.62203426]
[1746731677005,0.23029487,101190.0,101180.0,0.64179993]
[1746731677877,0.003,101190.0,101180.0,0.74246617]
[1746731678093,0.02276342,101190.0,101180.0,0.74864545]
[1746731678343,0.03264542,101190.0,101180.0,0.74864545]
[1746731678545,0.03264533,101190.0,101180.0,1.14864545]
[1746731678946,0.003,101190.0,101180.0,1.14864545]
[1746731679166,0.003,101190.0,101180.0,1.48864545]
[1746731680572,0.003,101190.0,101180.0,1.48246617]
[1746731681056,0.003,101190.0,101180.0,1.47321891]
[1746731682783,0.01288161,101190.0,101180.0,1.47321891]
[1746731682943,0.003,101190.0,101180.0,1.47321891]
[1746731683144,0.003,101190.0,101180.0,1.42380449]
[1746731683375,0.003,101190.0,101180.0,0.00204733]
[1746731683376,0.31520965,101190.0,101180.0,0.00204733]
[1746731683612,0.33040965,101190.0,101180.0,0.00204733]
[1746731684457,0.69657322,101190.0,101180.0,0.00204733]
[1746731684689,0.3449505,101190.0,101180.0,0.00204733]
[1746731685130,0.44561742,101190.0,101180.0,0.00204733]
[1746731686665,0.54925455,101200.0,101180.0,0.00204733]
[1746731686872,0.21939192,101190.0,101180.0,0.00204733]
[1746731687074,0.21741209,101190.0,101180.0,0.00204733]
[1746731687724,0.21741209,101190.0,101180.0,0.00304733]
[1746731687933,0.21741209,101190.0,101180.0,0.00404733]
[1746731688147,0.21741209,101190.0,101180.0,0.00204733]
[1746731688662,0.23495294,101190.0,101180.0,0.00204733]
[1746731689089,1.50962482,101190.0,101180.0,0.00204733]
[1746731689313,1.10594014,101190.0,101180.0,0.00204733]
[1746731689806,1.13524014,101190.0,101180.0,0.00204733]
[1746731690018,1.48686286,101190.0,101180.0,0.00204733]
[1746731690219,1.48986286,101190.0,101180.0,0.00304733]
[1746731690682,1.49386286,101190.0,101180.0,0.00304733]
[1746731694688,1.14224014,101190.0,101180.0,0.00304733]
[1746731695080,1.49386286,101190.0,101180.0,0.00304733]
[1746731695670,2.34732978,101190.0,101180.0,0.00304733]
[1746731696076,2.38039098,101190.0,101180.0,0.00304733]
[1746731696275,0.58985507,101170.0,101160.0,0.002]